[Event "*** SCC Grand Prix: Titled Tuesday Blitz"]
[Site "Chess.com"]
[Date "2020.08.11"]
[Round "8"]
[White "Fandorine"]
[Black "abykhovsky"]
[Result "1-0"]
[WhiteElo "2909"]
[BlackElo "2760"]
[TimeControl "180+1"]
[EndTime "11:33:42 PDT"]
[Termination "Fandorine won by resignation"]

1. e4 {[%clk 0:03:00.9]} 1... c5 {[%clk 0:02:58.5]} 2. b3 {[%clk 0:03:01.2]}
2... Nf6 {[%clk 0:02:57.7]} 3. e5 {[%clk 0:03:00.8]} 3... Nd5 {[%clk 0:02:58]}
4. Bb2 {[%clk 0:03:01.4]} 4... Nc6 {[%clk 0:02:58.5]} 5. Nf3 {[%clk 0:03:01.1]}
5... g6 {[%clk 0:02:58.4]} 6. Bc4 {[%clk 0:02:58.9]} 6... Nb6 {[%clk 0:02:52.7]}
7. Bb5 {[%clk 0:02:59]} 7... Bg7 {[%clk 0:02:51.5]} 8. Bxc6 {[%clk 0:02:59.1]}
8... bxc6 {[%clk 0:02:51.9]} 9. d3 {[%clk 0:02:59]} 9... O-O {[%clk 0:02:49.2]}
10. O-O {[%clk 0:02:59.5]} 10... d6 {[%clk 0:02:49.3]} 11. Re1 {[%clk
0:02:59.4]} 11... Bg4 {[%clk 0:02:47.6]} 12. Nbd2 {[%clk 0:02:59.2]} 12... a5
{[%clk 0:02:36]} 13. a4 {[%clk 0:02:55.4]} 13... dxe5 {[%clk 0:02:03.4]} 14.
Bxe5 {[%clk 0:02:44.3]} 14... f6 {[%clk 0:02:03.3]} 15. Bb2 {[%clk 0:02:43.7]}
15... e5 {[%clk 0:02:03.2]} 16. h3 {[%clk 0:02:44]} 16... Bf5 {[%clk 0:01:55.1]}
17. Ne4 {[%clk 0:02:43.5]} 17... Nd7 {[%clk 0:01:53.9]} 18. Nfd2 {[%clk
0:02:39.4]} 18... Qc7 {[%clk 0:01:24.8]} 19. Nc4 {[%clk 0:02:35.3]} 19... Rfd8
{[%clk 0:01:21]} 20. Qe2 {[%clk 0:02:28.5]} 20... Bf8 {[%clk 0:01:18.9]} 21. Qf3
{[%clk 0:02:19]} 21... Kg7 {[%clk 0:01:13.8]} 22. Nxf6 {[%clk 0:02:03.3]} 22...
Nxf6 {[%clk 0:01:08.6]} 23. Bxe5 {[%clk 0:02:03.7]} 23... Qf7 {[%clk 0:01:08.6]}
24. g4 {[%clk 0:02:04]} 24... Be6 {[%clk 0:00:51.5]} 25. g5 {[%clk 0:02:03.8]}
25... Be7 {[%clk 0:00:52]} 26. Qxc6 {[%clk 0:01:35.6]} 26... Bxh3 {[%clk
0:00:30.4]} 27. gxf6+ {[%clk 0:01:21.5]} 27... Bxf6 {[%clk 0:00:30.2]} 28. Bxf6+
{[%clk 0:01:11.5]} 28... Qxf6 {[%clk 0:00:30.1]} 29. Qxf6+ {[%clk 0:01:11.7]}
29... Kxf6 {[%clk 0:00:29.9]} 30. Re5 {[%clk 0:01:11.2]} 30... Rac8 {[%clk
0:00:28.7]} 31. Rae1 {[%clk 0:01:11]} 31... Bf5 {[%clk 0:00:17.3]} 32. Nxa5
{[%clk 0:01:08.3]} 32... Rd4 {[%clk 0:00:17.4]} 33. f3 {[%clk 0:01:08.4]} 33...
Rf8 {[%clk 0:00:14.1]} 34. Nc4 {[%clk 0:01:08.3]} 34... Rf4 {[%clk 0:00:11.1]}
35. R1e3 {[%clk 0:01:05.9]} 35... g5 {[%clk 0:00:10.9]} 36. Rxc5 {[%clk
0:01:03.4]} 36... g4 {[%clk 0:00:11.2]} 37. fxg4 {[%clk 0:00:59.9]} 37... Rxg4+
{[%clk 0:00:11]} 38. Kf2 {[%clk 0:00:58.8]} 38... Kg7 {[%clk 0:00:09.2]} 39. Rf3
{[%clk 0:00:56.1]} 39... Bg6 {[%clk 0:00:08.3]} 40. Rxf8 {[%clk 0:00:55.7]}
40... Kxf8 {[%clk 0:00:09.2]} 41. a5 {[%clk 0:00:56.1]} 41... Rg1 {[%clk
0:00:08.8]} 42. Kxg1 {[%clk 0:00:55.8]} 1-0

[Event "*** SCC Grand Prix: Titled Tuesday Blitz"]
[Site "Chess.com"]
[Date "2020.08.11"]
[Round "8"]
[White "Nikithebest"]
[Black "Yashasd1995"]
[Result "0-1"]
[WhiteElo "2423"]
[BlackElo "2527"]
[TimeControl "180+1"]
[EndTime "11:33:45 PDT"]
[Termination "Yashasd1995 won by resignation"]

1. e4 {[%clk 0:03:00.9]} 1... d5 {[%clk 0:02:59.3]} 2. exd5 {[%clk 0:03:00.5]}
2... Nf6 {[%clk 0:02:59.5]} 3. d4 {[%clk 0:02:58.8]} 3... Bg4 {[%clk 0:02:59.3]}
4. f3 {[%clk 0:02:52.6]} 4... Bf5 {[%clk 0:02:59.2]} 5. Bb5+ {[%clk 0:02:52.7]}
5... Nbd7 {[%clk 0:02:58.7]} 6. c4 {[%clk 0:02:52.2]} 6... e6 {[%clk 0:02:59]}
7. dxe6 {[%clk 0:02:52.2]} 7... fxe6 {[%clk 0:02:59.9]} 8. Ne2 {[%clk
0:02:50.9]} 8... c6 {[%clk 0:03:00.2]} 9. Ba4 {[%clk 0:02:50.6]} 9... Bd6 {[%clk
0:03:00.3]} 10. Bc2 {[%clk 0:02:50.5]} 10... Qc7 {[%clk 0:02:59.1]} 11. g3
{[%clk 0:02:42.4]} 11... O-O-O {[%clk 0:02:55.5]} 12. Nbc3 {[%clk 0:02:42.2]}
12... Rhe8 {[%clk 0:02:31.1]} 13. Be3 {[%clk 0:02:10.4]} 13... g6 {[%clk
0:02:22.7]} 14. Qd2 {[%clk 0:02:08.4]} 14... e5 {[%clk 0:02:22]} 15. d5 {[%clk
0:02:08.2]} 15... Bc5 {[%clk 0:02:02.4]} 16. Bxf5 {[%clk 0:02:05.5]} 16... gxf5
{[%clk 0:01:44.1]} 17. O-O-O {[%clk 0:02:05.3]} 17... Qa5 {[%clk 0:01:39.3]} 18.
Kb1 {[%clk 0:01:59.9]} 18... e4 {[%clk 0:01:34.3]} 19. f4 {[%clk 0:01:57.8]}
19... Ng4 {[%clk 0:01:33.9]} 20. Bxc5 {[%clk 0:01:56.3]} 20... Nxc5 {[%clk
0:01:34.8]} 21. Nd4 {[%clk 0:01:47.8]} 21... e3 {[%clk 0:01:24.2]} 22. Qc2
{[%clk 0:01:40.5]} 22... Nf2 {[%clk 0:01:23]} 23. Qxf5+ {[%clk 0:01:40.7]} 23...
Kb8 {[%clk 0:01:23.5]} 24. dxc6 {[%clk 0:01:14.1]} 24... Nxh1 {[%clk 0:01:19.9]}
25. cxb7 {[%clk 0:01:00.8]} 25... Kxb7 {[%clk 0:01:15]} 26. Qf7+ {[%clk
0:00:45.7]} 26... Qc7 {[%clk 0:01:13.6]} 27. Qxc7+ {[%clk 0:00:36.8]} 27... Kxc7
{[%clk 0:01:14.5]} 28. Rxh1 {[%clk 0:00:22]} 28... a6 {[%clk 0:00:56]} 29. Nce2
{[%clk 0:00:20.2]} 29... Re4 {[%clk 0:00:31]} 30. Rd1 {[%clk 0:00:18.8]} 30...
Ne6 {[%clk 0:00:28.8]} 31. Nxe6+ {[%clk 0:00:18.5]} 31... Rxe6 {[%clk
0:00:29.6]} 32. Rxd8 {[%clk 0:00:18.4]} 32... Kxd8 {[%clk 0:00:30.5]} 33. Kc2
{[%clk 0:00:18.3]} 33... Rd6 {[%clk 0:00:31.1]} 34. Kc3 {[%clk 0:00:18.3]} 34...
Rd2 {[%clk 0:00:30.8]} 35. Nd4 {[%clk 0:00:16.8]} 35... Rxd4 {[%clk 0:00:31.1]}
0-1

[Event "*** SCC Grand Prix: Titled Tuesday Blitz"]
[Site "Chess.com"]
[Date "2020.08.11"]
[Round "8"]
[White "zmarian"]
[Black "rynos0411"]
[Result "0-1"]
[WhiteElo "2190"]
[BlackElo "2335"]
[TimeControl "180+1"]
[EndTime "11:33:50 PDT"]
[Termination "rynos0411 won by resignation"]

1. g3 {[%clk 0:03:00.5]} 1... g6 {[%clk 0:02:53]} 2. Bg2 {[%clk 0:02:59.5]} 2...
Bg7 {[%clk 0:02:53.9]} 3. Nf3 {[%clk 0:02:58.9]} 3... Nf6 {[%clk 0:02:53.9]} 4.
O-O {[%clk 0:02:58.6]} 4... O-O {[%clk 0:02:54.8]} 5. d3 {[%clk 0:02:57.6]} 5...
d5 {[%clk 0:02:54.6]} 6. Nbd2 {[%clk 0:02:57.5]} 6... c6 {[%clk 0:02:54.3]} 7.
Rb1 {[%clk 0:02:55.8]} 7... Re8 {[%clk 0:02:50.1]} 8. b4 {[%clk 0:02:55.4]} 8...
e5 {[%clk 0:02:50.2]} 9. c4 {[%clk 0:02:44.7]} 9... Bf5 {[%clk 0:02:41.4]} 10.
Nh4 {[%clk 0:02:37.1]} 10... Be6 {[%clk 0:02:39.4]} 11. Qc2 {[%clk 0:02:32.9]}
11... Nbd7 {[%clk 0:02:37.5]} 12. Bb2 {[%clk 0:02:29.2]} 12... Qe7 {[%clk
0:02:25.9]} 13. e4 {[%clk 0:02:19.3]} 13... Rac8 {[%clk 0:02:19.1]} 14. Nhf3
{[%clk 0:02:15.4]} 14... d4 {[%clk 0:02:03.8]} 15. Ng5 {[%clk 0:02:12.4]} 15...
c5 {[%clk 0:02:02.3]} 16. Nxe6 {[%clk 0:02:11.5]} 16... Qxe6 {[%clk 0:02:00.1]}
17. b5 {[%clk 0:02:06.7]} 17... Nh5 {[%clk 0:01:46.7]} 18. Rbe1 {[%clk
0:02:04.9]} 18... Kh8 {[%clk 0:01:41.3]} 19. Bc1 {[%clk 0:02:03.2]} 19... a6
{[%clk 0:01:37.2]} 20. a4 {[%clk 0:02:00.2]} 20... axb5 {[%clk 0:01:37]} 21.
axb5 {[%clk 0:01:57.6]} 21... Ra8 {[%clk 0:01:36.9]} 22. f4 {[%clk 0:01:53.1]}
22... exf4 {[%clk 0:01:31.1]} 23. gxf4 {[%clk 0:01:51.1]} 23... Bh6 {[%clk
0:01:17.4]} 24. Nb3 {[%clk 0:01:25.5]} 24... Qg4 {[%clk 0:01:12]} 25. f5 {[%clk
0:01:03.1]} 25... Nf4 {[%clk 0:01:03.7]} 26. Bxf4 {[%clk 0:00:58.5]} 26... Bxf4
{[%clk 0:01:04.6]} 27. fxg6 {[%clk 0:00:49.5]} 27... fxg6 {[%clk 0:01:01.4]} 28.
Rf3 {[%clk 0:00:42.4]} 28... Be3+ {[%clk 0:00:58.8]} 29. Kh1 {[%clk 0:00:40.6]}
29... b6 {[%clk 0:00:56.2]} 30. Ref1 {[%clk 0:00:27.6]} 30... Ne5 {[%clk
0:00:55.7]} 31. Rf6 {[%clk 0:00:23]} 31... Rab8 {[%clk 0:00:44.1]} 32. Qd1
{[%clk 0:00:19.6]} 32... Qh4 {[%clk 0:00:42.7]} 33. Na1 {[%clk 0:00:16.9]} 33...
Ng4 {[%clk 0:00:42.8]} 34. h3 {[%clk 0:00:14.5]} 34... Nxf6 {[%clk 0:00:42.9]}
35. Nc2 {[%clk 0:00:12.8]} 35... Nh5 {[%clk 0:00:42.7]} 36. Qe1 {[%clk
0:00:07.8]} 36... Ng3+ {[%clk 0:00:40.2]} 37. Kh2 {[%clk 0:00:08.2]} 37... Nxf1+
{[%clk 0:00:40.1]} 38. Qxf1 {[%clk 0:00:08.7]} 38... Qf4+ {[%clk 0:00:40.2]} 39.
Qxf4 {[%clk 0:00:08]} 39... Bxf4+ {[%clk 0:00:40.5]} 0-1

[Event "*** SCC Grand Prix: Titled Tuesday Blitz"]
[Site "Chess.com"]
[Date "2020.08.11"]
[Round "8"]
[White "elcandado"]
[Black "Gusarov91"]
[Result "0-1"]
[WhiteElo "2545"]
[BlackElo "2662"]
[TimeControl "180+1"]
[EndTime "11:33:54 PDT"]
[Termination "Gusarov91 won by resignation"]

1. d4 {[%clk 0:03:00.9]} 1... Nf6 {[%clk 0:02:56.6]} 2. Bf4 {[%clk 0:03:00.3]}
2... d6 {[%clk 0:02:56.6]} 3. e3 {[%clk 0:02:58.9]} 3... Nbd7 {[%clk 0:02:54.9]}
4. Nf3 {[%clk 0:02:57.4]} 4... Nh5 {[%clk 0:02:53.8]} 5. Bg3 {[%clk 0:02:57.3]}
5... Nxg3 {[%clk 0:02:53.5]} 6. hxg3 {[%clk 0:02:58.2]} 6... c5 {[%clk
0:02:52.2]} 7. c3 {[%clk 0:02:56.6]} 7... Qb6 {[%clk 0:02:51.3]} 8. Qb3 {[%clk
0:02:56.1]} 8... g6 {[%clk 0:02:50.2]} 9. Nbd2 {[%clk 0:02:50.7]} 9... Qxb3
{[%clk 0:02:49.6]} 10. axb3 {[%clk 0:02:50.2]} 10... Bg7 {[%clk 0:02:46.9]} 11.
Be2 {[%clk 0:02:40.8]} 11... O-O {[%clk 0:02:46.3]} 12. O-O {[%clk 0:02:41.2]}
12... b6 {[%clk 0:02:44.8]} 13. Ba6 {[%clk 0:02:38.4]} 13... Nb8 {[%clk
0:02:38.2]} 14. Bxc8 {[%clk 0:02:35.9]} 14... Rxc8 {[%clk 0:02:39.1]} 15. Nc4
{[%clk 0:02:31.5]} 15... Nd7 {[%clk 0:02:35.9]} 16. Ra2 {[%clk 0:02:26.9]} 16...
a5 {[%clk 0:02:32]} 17. Na3 {[%clk 0:02:23.1]} 17... a4 {[%clk 0:02:27.1]} 18.
bxa4 {[%clk 0:02:00.1]} 18... Rxa4 {[%clk 0:02:26.8]} 19. Raa1 {[%clk
0:02:00.5]} 19... Rca8 {[%clk 0:02:24.7]} 20. Nc2 {[%clk 0:01:59.7]} 20... Ra2
{[%clk 0:02:24.7]} 21. Rxa2 {[%clk 0:01:48.3]} 21... Rxa2 {[%clk 0:02:24.1]} 22.
Rb1 {[%clk 0:01:48.6]} 22... e5 {[%clk 0:02:19.4]} 23. dxe5 {[%clk 0:01:44.1]}
23... Nxe5 {[%clk 0:02:17.8]} 24. Nxe5 {[%clk 0:01:43.4]} 24... Bxe5 {[%clk
0:02:17.5]} 25. e4 {[%clk 0:01:04]} 25... Bxc3 {[%clk 0:01:57.2]} 26. bxc3
{[%clk 0:01:03.7]} 26... Rxc2 {[%clk 0:01:57.4]} 27. Rxb6 {[%clk 0:01:03.1]}
27... Rc1+ {[%clk 0:01:51.2]} 28. Kh2 {[%clk 0:01:02.4]} 28... Rd1 {[%clk
0:01:51.3]} 29. Rc6 {[%clk 0:00:55.4]} 29... f6 {[%clk 0:01:45.3]} 30. Rc7
{[%clk 0:00:51.2]} 30... g5 {[%clk 0:01:41.8]} 31. g4 {[%clk 0:00:44.5]} 31...
Rd3 {[%clk 0:01:39.9]} 32. Rd7 {[%clk 0:00:38.9]} 32... Kf8 {[%clk 0:01:38.6]}
33. c4 {[%clk 0:00:20.1]} 33... Rd4 {[%clk 0:01:38.5]} 34. f3 {[%clk 0:00:19.4]}
34... Ke8 {[%clk 0:01:37.1]} 35. Rxh7 {[%clk 0:00:18.9]} 35... Rxc4 {[%clk
0:01:37.5]} 36. Kg3 {[%clk 0:00:18.4]} 36... Rc2 {[%clk 0:01:37.6]} 37. f4
{[%clk 0:00:17.3]} 37... Rc3+ {[%clk 0:01:37.6]} 38. Kf2 {[%clk 0:00:17.3]}
38... gxf4 {[%clk 0:01:38.1]} 39. Ke2 {[%clk 0:00:15.1]} 39... Re3+ {[%clk
0:01:38.2]} 40. Kf2 {[%clk 0:00:14.7]} 40... Rxe4 {[%clk 0:01:38.1]} 41. Kf3
{[%clk 0:00:15.6]} 41... Rd4 {[%clk 0:01:38.5]} 42. g5 {[%clk 0:00:15]} 42...
fxg5 {[%clk 0:01:38.4]} 43. Kg4 {[%clk 0:00:15.3]} 43... c4 {[%clk 0:01:32.9]}
44. Kxg5 {[%clk 0:00:13.8]} 44... d5 {[%clk 0:01:28.5]} 45. Kf5 {[%clk 0:00:12]}
45... c3 {[%clk 0:01:23.9]} 46. Rh1 {[%clk 0:00:10.3]} 46... c2 {[%clk
0:01:20.1]} 47. Rc1 {[%clk 0:00:09.5]} 47... Rd2 {[%clk 0:01:19.9]} 48. Kxf4
{[%clk 0:00:09.3]} 48... d4 {[%clk 0:01:20.3]} 49. Ke4 {[%clk 0:00:09.3]} 49...
d3 {[%clk 0:01:20.6]} 0-1

[Event "*** SCC Grand Prix: Titled Tuesday Blitz"]
[Site "Chess.com"]
[Date "2020.08.11"]
[Round "8"]
[White "IriBu"]
[Black "allvim"]
[Result "1-0"]
[WhiteElo "2490"]
[BlackElo "2373"]
[TimeControl "180+1"]
[EndTime "11:33:54 PDT"]
[Termination "IriBu won by resignation"]

1. e4 {[%clk 0:03:00.9]} 1... c5 {[%clk 0:02:57.3]} 2. Nf3 {[%clk 0:03:00.5]}
2... d6 {[%clk 0:02:57.8]} 3. d4 {[%clk 0:03:00.7]} 3... cxd4 {[%clk 0:02:58.7]}
4. Nxd4 {[%clk 0:03:01.1]} 4... Nf6 {[%clk 0:02:59.3]} 5. Nc3 {[%clk 0:03:01.7]}
5... a6 {[%clk 0:02:59.8]} 6. h3 {[%clk 0:03:01]} 6... e5 {[%clk 0:02:59.1]} 7.
Nb3 {[%clk 0:03:00.7]} 7... h5 {[%clk 0:02:59]} 8. f4 {[%clk 0:03:00.4]} 8...
Qc7 {[%clk 0:02:26.4]} 9. Be3 {[%clk 0:02:57.5]} 9... Be6 {[%clk 0:02:23.9]} 10.
Qd2 {[%clk 0:02:57.2]} 10... Nbd7 {[%clk 0:02:23.3]} 11. O-O-O {[%clk 0:02:53]}
11... Be7 {[%clk 0:02:14.1]} 12. Kb1 {[%clk 0:02:46.4]} 12... Rc8 {[%clk
0:02:07.8]} 13. Be2 {[%clk 0:02:28.1]} 13... b5 {[%clk 0:02:01.5]} 14. Bf3
{[%clk 0:02:15.1]} 14... Nb6 {[%clk 0:01:56.5]} 15. Bxb6 {[%clk 0:02:11.2]}
15... Qxb6 {[%clk 0:01:57.4]} 16. f5 {[%clk 0:02:08.1]} 16... Bc4 {[%clk
0:01:46.5]} 17. g4 {[%clk 0:02:01]} 17... a5 {[%clk 0:01:24.7]} 18. g5 {[%clk
0:01:56.3]} 18... Nd7 {[%clk 0:01:24.6]} 19. Nd5 {[%clk 0:01:48.4]} 19... Bxd5
{[%clk 0:01:19.7]} 20. Qxd5 {[%clk 0:01:47.9]} 20... a4 {[%clk 0:01:14.5]} 21.
Nc1 {[%clk 0:01:45.2]} 21... Qc5 {[%clk 0:01:13.1]} 22. Rh2 {[%clk 0:01:35.7]}
22... Nb6 {[%clk 0:00:52.3]} 23. Qxc5 {[%clk 0:01:27.1]} 23... Rxc5 {[%clk
0:00:50.9]} 24. h4 {[%clk 0:01:15.8]} 24... Nc4 {[%clk 0:00:51.2]} 25. Nd3
{[%clk 0:01:13]} 25... Rc8 {[%clk 0:00:44.8]} 26. a3 {[%clk 0:01:07.1]} 26...
Nb6 {[%clk 0:00:28.2]} 27. Nb4 {[%clk 0:01:03.7]} 27... Rc5 {[%clk 0:00:12.2]}
28. b3 {[%clk 0:01:02.3]} 28... axb3 {[%clk 0:00:11.9]} 29. cxb3 {[%clk
0:01:02.1]} 29... Rc3 {[%clk 0:00:12.1]} 30. Rd3 {[%clk 0:00:57.6]} 30... Rxd3
{[%clk 0:00:12.4]} 31. Nxd3 {[%clk 0:00:57.9]} 31... Kd7 {[%clk 0:00:12.8]} 32.
Nb4 {[%clk 0:00:54.5]} 32... Rc8 {[%clk 0:00:12]} 33. Rc2 {[%clk 0:00:53.6]}
33... Rxc2 {[%clk 0:00:08.1]} 34. Kxc2 {[%clk 0:00:54.5]} 34... g6 {[%clk
0:00:08.6]} 35. fxg6 {[%clk 0:00:45.9]} 35... fxg6 {[%clk 0:00:08.8]} 36. Nd5
{[%clk 0:00:40.5]} 36... Nxd5 {[%clk 0:00:09]} 37. exd5 {[%clk 0:00:41.2]} 37...
Kc7 {[%clk 0:00:09.5]} 38. Be4 {[%clk 0:00:40.6]} 38... Kb6 {[%clk 0:00:03.9]}
1-0

[Event "*** SCC Grand Prix: Titled Tuesday Blitz"]
[Site "Chess.com"]
[Date "2020.08.11"]
[Round "8"]
[White "SzMM19"]
[Black "Xeslu"]
[Result "1-0"]
[WhiteElo "2473"]
[BlackElo "2299"]
[TimeControl "180+1"]
[EndTime "11:33:55 PDT"]
[Termination "SzMM19 won by resignation"]

1. b3 {[%clk 0:03:00.9]} 1... e5 {[%clk 0:02:54.5]} 2. Bb2 {[%clk 0:02:58.5]}
2... Nc6 {[%clk 0:02:55.1]} 3. e3 {[%clk 0:02:58.4]} 3... Nf6 {[%clk 0:02:49.5]}
4. Bb5 {[%clk 0:02:58]} 4... Bd6 {[%clk 0:02:49.5]} 5. Na3 {[%clk 0:02:57.6]}
5... a6 {[%clk 0:02:45.2]} 6. Bxc6 {[%clk 0:02:56.8]} 6... dxc6 {[%clk
0:02:46.1]} 7. Nc4 {[%clk 0:02:57.3]} 7... Qe7 {[%clk 0:02:46.5]} 8. Nf3 {[%clk
0:02:56.8]} 8... Bg4 {[%clk 0:02:40.3]} 9. h3 {[%clk 0:02:53.9]} 9... Bh5 {[%clk
0:02:40.2]} 10. g4 {[%clk 0:02:52]} 10... Bg6 {[%clk 0:02:40.3]} 11. Nfxe5
{[%clk 0:02:46.9]} 11... O-O-O {[%clk 0:02:37.6]} 12. Nxg6 {[%clk 0:02:45]}
12... hxg6 {[%clk 0:02:37.4]} 13. Qf3 {[%clk 0:02:42]} 13... Nd7 {[%clk
0:02:26.4]} 14. Bxg7 {[%clk 0:02:30.5]} 14... Rhg8 {[%clk 0:02:25.6]} 15. Bb2
{[%clk 0:02:29.6]} 15... Ne5 {[%clk 0:02:26.5]} 16. Nxe5 {[%clk 0:02:28.9]}
16... Bxe5 {[%clk 0:02:27.4]} 17. Bxe5 {[%clk 0:02:29.5]} 17... Qxe5 {[%clk
0:02:27]} 18. Ke2 {[%clk 0:02:23.9]} 18... Qb2 {[%clk 0:02:14.2]} 19. Rac1
{[%clk 0:02:14.1]} 19... Kb8 {[%clk 0:02:00.6]} 20. a4 {[%clk 0:02:09.5]} 20...
Rgf8 {[%clk 0:01:57.3]} 21. h4 {[%clk 0:02:07.9]} 21... f5 {[%clk 0:01:56.8]}
22. g5 {[%clk 0:02:07.8]} 22... Rde8 {[%clk 0:01:50]} 23. d3 {[%clk 0:01:56.7]}
23... Qc3 {[%clk 0:01:32.9]} 24. h5 {[%clk 0:01:49.9]} 24... gxh5 {[%clk
0:01:32.5]} 25. Rxh5 {[%clk 0:01:44.8]} 25... Qb2 {[%clk 0:01:32.1]} 26. Kd2
{[%clk 0:01:35.7]} 26... Rd8 {[%clk 0:01:27.1]} 27. Rhh1 {[%clk 0:01:18]} 27...
c5 {[%clk 0:01:20.7]} 28. g6 {[%clk 0:01:11.5]} 28... Qf6 {[%clk 0:00:59.5]} 29.
Rhg1 {[%clk 0:01:09]} 29... Qe6 {[%clk 0:00:59.5]} 30. Qf4 {[%clk 0:00:49.4]}
30... Rg8 {[%clk 0:00:55.8]} 31. Rg5 {[%clk 0:00:49.8]} 31... Rxg6 {[%clk
0:00:43.1]} 32. Rxf5 {[%clk 0:00:48.1]} 32... Qg8 {[%clk 0:00:41.6]} 33. Rxc5
{[%clk 0:00:40.8]} 33... Rg2 {[%clk 0:00:41.5]} 34. Rxc7 {[%clk 0:00:25.5]}
34... Ka8 {[%clk 0:00:40.9]} 35. Rf7 {[%clk 0:00:20.1]} 35... Qh8 {[%clk
0:00:31.9]} 36. Qf3 {[%clk 0:00:19.6]} 1-0

[Event "*** SCC Grand Prix: Titled Tuesday Blitz"]
[Site "Chess.com"]
[Date "2020.08.11"]
[Round "8"]
[White "PawnEatingZombie"]
[Black "Ole83"]
[Result "0-1"]
[WhiteElo "2210"]
[BlackElo "2357"]
[TimeControl "180+1"]
[EndTime "11:33:55 PDT"]
[Termination "Ole83 won by resignation"]

1. d4 {[%clk 0:02:47.4]} 1... Nf6 {[%clk 0:02:59.1]} 2. c4 {[%clk 0:02:45.4]}
2... e6 {[%clk 0:02:57.7]} 3. Nc3 {[%clk 0:02:45.4]} 3... Bb4 {[%clk 0:02:56.9]}
4. Qc2 {[%clk 0:02:46]} 4... c5 {[%clk 0:02:52.2]} 5. dxc5 {[%clk 0:02:46.9]}
5... Na6 {[%clk 0:02:46.2]} 6. a3 {[%clk 0:02:44.8]} 6... Bxc3+ {[%clk
0:02:45.7]} 7. Qxc3 {[%clk 0:02:43.9]} 7... Nxc5 {[%clk 0:02:45.8]} 8. b4 {[%clk
0:02:33.7]} 8... Nce4 {[%clk 0:02:44.8]} 9. Qb2 {[%clk 0:02:32]} 9... d5 {[%clk
0:02:41.5]} 10. f3 {[%clk 0:02:28.1]} 10... Nd6 {[%clk 0:02:39.6]} 11. c5 {[%clk
0:02:27.8]} 11... Nf5 {[%clk 0:02:30.4]} 12. e3 {[%clk 0:02:16.9]} 12... O-O
{[%clk 0:02:22]} 13. Bd3 {[%clk 0:02:16.4]} 13... Re8 {[%clk 0:02:15.7]} 14.
Bxf5 {[%clk 0:02:07.3]} 14... exf5 {[%clk 0:02:13.2]} 15. Ne2 {[%clk 0:02:07.7]}
15... Bd7 {[%clk 0:02:01.6]} 16. O-O {[%clk 0:02:06.8]} 16... b6 {[%clk
0:02:01.8]} 17. Qd4 {[%clk 0:01:47]} 17... bxc5 {[%clk 0:01:59.2]} 18. bxc5
{[%clk 0:01:46.7]} 18... Bb5 {[%clk 0:01:58.1]} 19. Rf2 {[%clk 0:01:39.3]} 19...
Rc8 {[%clk 0:01:56.3]} 20. Bb2 {[%clk 0:01:07.1]} 20... Qe7 {[%clk 0:01:51.9]}
21. Nf4 {[%clk 0:01:02.3]} 21... Qxc5 {[%clk 0:01:47.2]} 22. Rd1 {[%clk
0:00:35.2]} 22... Bc4 {[%clk 0:01:27.8]} 23. Qc3 {[%clk 0:00:31.7]} 23... Qxe3
{[%clk 0:01:23.9]} 24. Qxe3 {[%clk 0:00:29.7]} 24... Rxe3 {[%clk 0:01:22.7]} 25.
Bxf6 {[%clk 0:00:28.5]} 25... gxf6 {[%clk 0:01:21.9]} 26. Nxd5 {[%clk 0:00:29]}
26... Bxd5 {[%clk 0:01:13.1]} 27. Rxd5 {[%clk 0:00:29.9]} 27... Rxa3 {[%clk
0:01:09.5]} 28. h4 {[%clk 0:00:24.5]} 28... Kg7 {[%clk 0:01:02.9]} 29. Rxf5
{[%clk 0:00:24]} 29... Rc4 {[%clk 0:00:58.6]} 30. g3 {[%clk 0:00:18.4]} 30... a5
{[%clk 0:00:54.3]} 31. Rb5 {[%clk 0:00:17.1]} 31... a4 {[%clk 0:00:52.4]} 32.
Ra5 {[%clk 0:00:15.9]} 32... Ra1+ {[%clk 0:00:51.7]} 33. Kg2 {[%clk 0:00:16]}
33... a3 {[%clk 0:00:50.4]} 34. Re2 {[%clk 0:00:12.8]} 34... Rb4 {[%clk
0:00:47.5]} 35. Kh3 {[%clk 0:00:08.5]} 35... Rh1+ {[%clk 0:00:46.3]} 36. Kg2
{[%clk 0:00:07.7]} 36... Ra1 {[%clk 0:00:46.8]} 37. Re7 {[%clk 0:00:07.6]} 37...
h5 {[%clk 0:00:44.5]} 38. Raa7 {[%clk 0:00:03.1]} 38... Rb2+ {[%clk 0:00:42.8]}
0-1

[Event "*** SCC Grand Prix: Titled Tuesday Blitz"]
[Site "Chess.com"]
[Date "2020.08.11"]
[Round "8"]
[White "ChronicUnhappiness"]
[Black "Iris77"]
[Result "1-0"]
[WhiteElo "2355"]
[BlackElo "2074"]
[TimeControl "180+1"]
[EndTime "11:33:57 PDT"]
[Termination "ChronicUnhappiness won on time"]

1. d4 {[%clk 0:03:00.9]} 1... e6 {[%clk 0:02:57.5]} 2. c4 {[%clk 0:03:00.6]}
2... f5 {[%clk 0:02:48.3]} 3. Nf3 {[%clk 0:03:00.1]} 3... Nf6 {[%clk 0:02:47.5]}
4. g3 {[%clk 0:03:00.2]} 4... Be7 {[%clk 0:02:39.7]} 5. Bg2 {[%clk 0:03:00.4]}
5... O-O {[%clk 0:02:36.5]} 6. O-O {[%clk 0:03:00.9]} 6... d6 {[%clk 0:02:35.6]}
7. Nc3 {[%clk 0:02:55.4]} 7... Ne4 {[%clk 0:02:34.6]} 8. Qc2 {[%clk 0:02:54.3]}
8... Nxc3 {[%clk 0:02:33.6]} 9. Qxc3 {[%clk 0:02:54.4]} 9... Nd7 {[%clk
0:02:26.7]} 10. b3 {[%clk 0:02:52.7]} 10... Bf6 {[%clk 0:02:24.7]} 11. Bb2
{[%clk 0:02:48.7]} 11... Qe8 {[%clk 0:02:21.2]} 12. Qc2 {[%clk 0:02:14.2]} 12...
Qg6 {[%clk 0:02:14.2]} 13. Rfe1 {[%clk 0:01:57]} 13... e5 {[%clk 0:01:52.4]} 14.
dxe5 {[%clk 0:01:57.9]} 14... dxe5 {[%clk 0:01:51.3]} 15. Rad1 {[%clk
0:01:52.7]} 15... e4 {[%clk 0:01:46.3]} 16. Nd4 {[%clk 0:01:48.6]} 16... Ne5
{[%clk 0:01:41.8]} 17. f3 {[%clk 0:01:29.1]} 17... c6 {[%clk 0:01:12.9]} 18. f4
{[%clk 0:01:05]} 18... Ng4 {[%clk 0:01:08.2]} 19. e3 {[%clk 0:01:04.7]} 19...
Qh5 {[%clk 0:00:58.2]} 20. Bf1 {[%clk 0:00:58.9]} 20... Qg6 {[%clk 0:00:50]} 21.
c5 {[%clk 0:00:50.7]} 21... h5 {[%clk 0:00:46.1]} 22. Qg2 {[%clk 0:00:23.9]}
22... h4 {[%clk 0:00:17.6]} 23. Bc4+ {[%clk 0:00:23]} 23... Kh7 {[%clk
0:00:15.5]} 24. h3 {[%clk 0:00:21.8]} 24... Nh6 {[%clk 0:00:13.8]} 25. gxh4
{[%clk 0:00:19.9]} 25... Bxh4 {[%clk 0:00:11.2]} 26. Qxg6+ {[%clk 0:00:17.9]}
26... Kxg6 {[%clk 0:00:11.4]} 27. Re2 {[%clk 0:00:18.8]} 27... Kh7 {[%clk
0:00:09.2]} 28. Kh2 {[%clk 0:00:17.4]} 28... Bf6 {[%clk 0:00:05.7]} 29. Red2
{[%clk 0:00:15.7]} 1-0